bitfinex/quotes_ETHUSD_20250814
["timestamp","ask_amount","ask_price","bid_price","bid_amount"]
[1755204268397,53.15922138,4530.8,4530.7,8.9071297]
[1755204268797,41.90968232,4530.8,4530.7,8.9071297]
[1755204268981,41.90968232,4530.8,4530.7,9.3383297]
[1755204268982,45.44468232,4530.8,4530.7,9.3383297]
[1755204269520,45.44468232,4530.8,4530.7,11.7327297]
[1755204269720,45.44468232,4530.8,4530.7,12.9627297]
[1755204269896,45.32199709,4530.8,4530.7,10.1371297]
[1755204270100,45.44500242,4530.8,4530.7,10.1371297]
[1755204270311,37.58400242,4530.8,4530.7,10.5683297]
[1755204270499,37.58400242,4530.8,4530.7,12.9627297]
[1755204270703,11.11900242,4530.8,4530.7,12.9627297]
[1755204271035,14.11900242,4530.8,4530.7,12.9627297]
[1755204271198,14.11900242,4530.8,4530.7,14.1927297]
[1755204272601,14.11900242,4530.8,4530.7,15.4227297]
[1755204274052,14.11900242,4530.8,4530.7,16.6527297]
[1755204274563,10.34036177,4530.8,4530.7,16.6527297]
[1755204274868,8.04036177,4530.8,4530.7,16.6527297]
[1755204275650,8.04036177,4530.8,4530.7,17.8827297]
[1755204277245,8.04036177,4530.8,4530.7,19.1127297]
[1755204277418,8.04236177,4530.8,4530.7,19.1127297]
[1755204278637,8.04236177,4530.8,4530.7,20.3427297]
[1755204278837,9.22519346,4530.8,4530.7,20.3427297]
[1755204279546,8.04236177,4530.8,4530.7,20.3427297]
[1755204279906,8.04236177,4530.8,4530.7,21.5727297]
[1755204281247,8.04236177,4530.8,4530.7,22.8027297]
[1755204281946,8.04236177,4530.8,4530.7,19.9771297]
[1755204282308,8.47336177,4530.8,4530.7,19.9771297]
[1755204282513,9.13662477,4530.8,4530.7,19.9771297]
[1755204282725,8.70562477,4530.8,4530.7,21.2071297]
[1755204284019,10.03162477,4530.8,4530.7,21.2071297]
[1755204284219,43.22524053,4530.8,4530.7,19.45514048]
[1755204284419,44.79906382,4530.8,4530.7,19.45514048]
[1755204284732,43.22542705,4530.8,4530.7,17.06925029]
[1755204285359,43.48430802,4530.8,4530.7,17.06925029]
[1755204285533,43.48430802,4530.8,4530.7,18.29925029]
[1755204286450,44.03430802,4530.8,4530.7,18.29925029]
[1755204286977,44.04023732,4530.8,4530.7,19.52925029]
[1755204287337,44.04023732,4530.8,4530.7,19.24204376]
[1755204288239,43.22635635,4530.8,4530.7,20.47204376]
[1755204289282,48.52735635,4530.8,4530.7,20.47204376]
[1755204289573,49.33623732,4530.8,4530.7,12.57270579]
[1755204290071,46.26266643,4530.8,4530.7,12.57270579]
[1755204290449,46.69366643,4530.8,4530.7,12.57270579]
[1755204290666,46.69366643,4530.8,4530.7,10.18670313]
[1755204290835,42.18266643,4530.8,4530.7,11.41670313]
[1755204291035,42.44895067,4530.8,4530.7,11.41670313]
[1755204291436,45.44895067,4530.8,4530.7,11.41670313]
[1755204292278,45.4488226,4530.8,4530.7,12.64670313]
[1755204292777,48.63773836,4530.8,4530.7,12.64670313]
[1755204293553,48.63773836,4530.8,4530.7,13.87670313]
[1755204293874,49.18773836,4530.8,4530.7,13.87670313]
[1755204294078,49.44661933,4530.8,4530.7,13.87670313]
[1755204294245,49.44661933,4530.8,4530.7,12.08720049]
[1755204294878,49.44661933,4530.8,4530.7,13.31720049]
[1755204295172,69.44661933,4530.8,4530.7,13.02998713]
[1755204295975,66.54941933,4530.8,4530.7,13.02998713]
[1755204296177,45.73853836,4530.8,4530.7,13.02998713]
[1755204296356,45.73853836,4530.8,4530.7,14.25998713]
[1755204296551,45.73891989,4530.8,4530.7,11.87397649]
[1755204296953,49.44500086,4530.8,4530.7,11.87397649]
[1755204297154,49.64596557,4530.8,4530.7,11.87397649]
[1755204297793,49.64596557,4530.8,4530.7,13.10397649]
[1755204298088,69.64596557,4530.8,4530.7,13.10397649]
[1755204299192,69.64596557,4530.8,4530.7,13.14096982]
[1755204299496,69.64624434,4530.8,4530.7,13.14096982]
[1755204300283,62.41216337,4530.8,4530.7,13.14096982]
[1755204300491,66.91257858,4530.8,4530.7,14.37096982]
[1755204300801,67.02297858,4530.8,4530.7,17.25576982]
[1755204300986,67.02297858,4530.8,4530.7,14.37096982]
[1755204301162,47.02297858,4530.8,4530.7,14.37096982]
[1755204301515,47.0229961,4530.8,4530.7,14.37096982]
[1755204302001,47.0229961,4530.8,4530.7,15.60096982]
[1755204302817,43.4959961,4530.8,4530.7,15.60096982]
[1755204303182,47.0229961,4530.8,4530.7,15.60096982]
[1755204303385,47.0229961,4530.8,4530.7,16.83096982]
[1755204304218,47.12086903,4530.8,4530.7,14.44508092]
[1755204304418,47.24410647,4530.8,4530.7,12.65552572]
[1755204304594,49.66890647,4530.8,4530.7,12.65552572]
[1755204304794,49.66890647,4530.8,4530.7,13.88552572]
[1755204305202,69.66890647,4530.8,4530.7,13.59830945]
[1755204305528,67.24410647,4530.8,4530.7,13.59830945]
[1755204306023,66.77170647,4530.8,4530.7,13.59830945]
[1755204306221,66.5118255,4530.8,4530.7,14.82830945]
[1755204307193,46.5118255,4530.8,4530.7,14.82830945]
[1755204307531,48.47463622,4530.8,4530.7,13.07572093]
[1755204308046,45.4445617,4530.8,4530.7,13.07572093]
[1755204308437,46.98905883,4530.8,4530.7,13.07572093]
[1755204308620,51.37666955,4530.8,4530.7,13.07572093]
[1755204308807,51.37666955,4530.8,4530.7,14.30572093]
[1755204308808,51.63555052,4530.8,4530.7,14.30572093]
[1755204309322,71.63555052,4530.8,4530.7,14.30572093]
[1755204309972,0.55,4530.3,4530.2,22.31929604]
[1755204310110,49.6614283,4530.3,4530.2,22.31929604]
[1755204310309,53.1008921,4530.3,4530.2,19.93259504]
[1755204310530,50.4935967,4530.3,4530.2,19.93259504]
[1755204310851,50.4935967,4530.3,4530.2,12.9542514]
[1755204311030,50.4935967,4530.3,4530.2,5.94871665]
[1755204311228,70.4935967,4530.3,4530.2,5.94871665]
[1755204311457,70.4935967,4530.3,4530.2,7.17871665]
[1755204311776,3.0,4530.2,4528.2,0.001]
[1755204312054,1.876,4529.4,4528.2,0.001]
[1755204312230,42.51891498,4529.4,4528.2,0.001]
[1755204312432,42.64215242,4529.4,4528.2,0.001]
[1755204312646,43.30585442,4529.4,4528.2,0.001]
[1755204312865,43.30585442,4529.4,4529.3,2.461]
[1755204313037,63.30585442,4529.4,4529.3,2.461]
[1755204313232,63.30585442,4529.4,4528.2,0.001]
[1755204313233,12.8670871,4529.3,4528.2,0.001]
[1755204313544,9.20168862,4529.2,4528.2,0.001]
[1755204313745,39.74395242,4529.2,4528.2,0.001]
[1755204313946,1.876,4528.9,4528.2,0.001]
[1755204314176,0.55,4528.6,4527.8,0.001]
[1755204314319,1.18072926,4527.9,4527.8,2.8858]
[1755204314652,37.70472926,4527.9,4527.8,2.8858]
[1755204314856,37.32568862,4527.9,4527.8,2.8858]
[1755204315011,38.50652076,4527.9,4527.8,2.8858]
[1755204315377,38.50652076,4527.9,4527.1,2.46]
[1755204315378,1.876,4527.7,4527.1,2.46]
[1755204315512,10.4488233,4527.2,4527.1,2.46]
[1755204315717,44.77451192,4527.2,4527.1,2.46]
[1755204316756,37.32568862,4527.2,4527.1,2.46]
[1755204316957,37.61740438,4527.2,4527.1,3.69]
[1755204317919,37.32568862,4527.2,4527.1,6.5748]
[1755204318462,37.32568862,4527.2,4527.1,4.92]
[1755204318955,38.16740438,4527.2,4527.1,4.92]
[1755204319157,41.31515242,4527.2,4527.1,4.92]
[1755204319333,38.89035242,4527.2,4527.1,4.92]
[1755204319717,38.89035242,4527.2,4527.1,6.15]
[1755204320020,61.42555242,4527.2,4527.1,6.15]
[1755204320417,58.52835242,4527.2,4527.1,6.15]
[1755204320825,59.00075242,4527.2,4527.1,6.15]
[1755204321030,61.42555242,4527.2,4527.1,7.38]
[1755204321455,55.00435242,4527.2,4527.1,7.38]
[1755204321613,59.19233242,4527.2,4527.1,7.38]
[1755204322019,35.11833242,4527.2,4527.1,7.38]
[1755204322219,39.58973225,4527.2,4527.1,7.38]
[1755204322461,39.58973225,4527.2,4527.1,8.61]
[1755204322758,39.21608242,4527.2,4527.1,8.61]
[1755204323744,39.21608242,4527.2,4527.1,9.84]
[1755204324257,39.67058242,4527.2,4527.1,9.84]
[1755204324462,43.63613006,4527.2,4527.1,9.84]
[1755204325166,63.63613006,4527.2,4527.1,11.07]
[1755204325375,63.63613006,4527.2,4527.1,9.27901061]
[1755204325579,60.54208242,4527.2,4527.1,9.27901061]
[1755204325940,57.13435387,4527.2,4527.1,9.27901061]
[1755204326174,60.65735387,4527.2,4527.1,9.27901061]
[1755204326380,60.65735387,4527.2,4527.1,10.50901061]
[1755204326548,63.48194742,4527.2,4527.1,10.50901061]
[1755204326752,33.48194742,4527.2,4527.1,10.50901061]
[1755204326951,63.48194742,4527.2,4527.1,10.50901061]
[1755204327482,63.54524742,4527.2,4527.1,10.50901061]
[1755204327684,63.54524742,4527.2,4527.1,11.73901061]
[1755204327878,66.37024742,4527.2,4527.1,11.73901061]
[1755204329051,66.37024742,4527.2,4527.1,12.96901061]
[1755204329285,66.63929506,4527.2,4527.1,11.77496167]
[1755204329481,66.63929506,4527.2,4527.1,9.3868638]
[1755204330147,60.29129506,4527.2,4527.1,9.3868638]
[1755204330456,60.29129506,4527.2,4527.1,10.6168638]
[1755204330457,65.11222403,4527.2,4527.1,10.6168638]
[1755204330842,58.21463048,4527.2,4527.1,10.6168638]
[1755204331046,42.88425387,4527.2,4527.1,9.55643387]
[1755204331349,2.43187357,4526.8,4526.7,2.46]
[1755204331548,40.12178274,4526.8,4526.7,2.46]
[1755204331771,45.5121651,4526.8,4526.7,2.06005086]
[1755204331979,45.5121651,4526.8,4526.7,3.29005086]
[1755204332662,45.50324358,4526.8,4526.7,2.93530315]
[1755204332853,15.50324358,4526.8,4526.7,1.84591374]
[1755204333195,35.98544226,4526.8,4526.7,1.41460832]
[1755204333379,65.98544226,4526.8,4526.7,1.72732632]
[1755204333580,0.55,4526.3,4526.1,0.001]
[1755204333795,41.75250666,4526.2,4526.1,0.001]
[1755204334101,48.17393088,4526.2,4526.1,0.001]
[1755204334654,0.55,4525.7,4524.7,1.03]
[1755204334853,6.44166021,4524.8,4524.7,1.03]
[1755204335099,40.57143088,4524.8,4524.7,1.03]
[1755204335261,1.876,4523.9,4523.8,49.10839147]
[1755204335468,41.02029195,4523.9,4523.8,47.3161645]
[1755204335769,45.1350136,4523.9,4523.8,47.3161645]
[1755204336000,45.1350136,4523.9,4523.8,48.5461645]
[1755204336187,65.7994706,4523.9,4523.8,48.5461645]
[1755204336386,67.47127681,4523.9,4523.8,48.5461645]
[1755204336708,60.41035128,4523.9,4523.8,51.25037872]
[1755204336917,59.70014626,4523.9,4523.8,51.12442138]
[1755204337203,40.28711384,4523.9,4523.8,52.35442138]
[1755204337718,6.70014626,4523.9,4523.8,49.49760583]
[1755204337913,7.78531324,4523.9,4523.8,46.61528555]
[1755204338084,64.27567155,4523.9,4523.8,41.9769196]
[1755204338287,64.64283072,4523.9,4523.8,31.38133579]
[1755204338483,64.64283072,4523.9,4523.8,31.08263579]
[1755204338706,63.59733072,4523.9,4523.8,31.08263579]
[1755204339015,69.96783072,4523.9,4523.8,32.31263579]
[1755204339218,69.96783072,4523.9,4523.8,31.27041397]
[1755204339515,71.92134833,4523.9,4523.8,31.27041397]
[1755204339814,69.96783072,4523.9,4523.8,30.26064397]
[1755204340115,70.06783072,4523.9,4523.8,25.90218481]
[1755204340278,41.24768295,4523.9,4523.8,8.72428897]
[1755204340496,41.24768295,4523.9,4523.3,6.84250038]
[1755204340497,1.976,4523.4,4523.3,6.84250038]
[1755204340831,1.326,4522.0,4517.0,2.21385475]
[1755204341005,1.326,4522.0,4515.0,0.1]
[1755204341006,1.01769717,4515.3,4515.0,0.1]
[1755204341199,1.91071276,4519.6,4515.0,0.1]
[1755204341200,3.55174,4515.5,4515.4,2.21462211]
[1755204341384,0.1104,4517.0,4515.4,0.1104]
[1755204341588,0.1104,4517.0,4516.3,16.02146507]
[1755204341789,0.16752211,4517.9,4516.4,3.551]
[1755204342069,3.552,4517.8,4515.7,0.1104]
[1755204342329,0.1104,4516.4,4514.7,16.02146507]
[1755204342533,0.1104,4514.1,4513.8,0.665154]
[1755204342692,0.58471276,4517.6,4514.0,18.68033916]
[1755204342885,0.20263697,4517.9,4516.9,16.02146507]
[1755204343086,0.20263697,4518.6,4517.6,16.02146507]
[1755204343301,30.0,4518.3,4517.4,1.4414]
[1755204343501,0.20263697,4518.2,4517.4,1.4414]
[1755204343702,0.20263697,4518.2,4517.4,17.46286507]
[1755204344005,3.61,4519.2,4517.5,3.18768651]
[1755204344209,30.20197447,4519.1,4517.6,1.4414]
[1755204344408,30.66729834,4519.0,4517.6,1.4414]
[1755204344611,30.0,4517.6,4516.9,0.459087]
[1755204344795,3.81197447,4517.5,4516.9,0.459087]
[1755204345147,0.55,4517.3,4516.9,0.459087]
[1755204345289,3.55,4517.1,4514.2,0.4576]
[1755204345524,0.1154,4515.6,4509.8,0.1]
[1755204345778,3.0,4515.4,4513.5,0.4576]
[1755204345940,33.84497447,4515.3,4513.5,0.4576]
[1755204346141,3.0,4515.1,4511.0,0.665583]
[1755204346343,3.643,4515.3,4513.6,0.4576]
[1755204346344,3.0,4514.9,4513.6,0.4576]
[1755204346535,3.0,4514.7,4513.6,0.4576]
[1755204346865,3.0,4514.5,4512.8,0.4576]
[1755204347023,3.0,4514.3,4512.8,0.4576]
[1755204347223,3.0,4514.1,4512.2,0.4576]
[1755204347425,3.0,4513.9,4512.2,0.4576]
[1755204347653,3.0,4513.7,4512.3,0.4576]
[1755204347851,3.0,4513.5,4512.3,0.4576]
[1755204348120,3.0,4513.5,4509.9,3.655]
[1755204348121,3.0,4513.3,4511.2,16.02146507]
[1755204348347,3.655,4513.2,4511.3,3.52331306]
[1755204348630,20.0,4514.0,4511.8,12.59926111]
[1755204348832,20.0,4514.0,4512.0,0.55]
[1755204348833,3.655,4513.9,4512.0,0.55]
[1755204349070,30.0,4513.8,4512.2,0.55]
[1755204349362,30.0,4513.8,4512.3,1.899]
[1755204349562,30.0,4513.8,4512.4,0.6475]
[1755204349971,3.655,4513.7,4512.5,0.4576]
[1755204350539,3.0,4514.6,4512.5,0.4576]
[1755204350731,3.0,4514.1,4512.6,1.4414]
[1755204351127,3.0,4514.6,4512.7,0.4576]
[1755204351327,20.0,4515.3,4511.6,0.55]
[1755204351328,20.0,4515.3,4512.8,0.1899]
[1755204351535,20.0,4515.3,4512.9,0.55]
[1755204351536,3.652,4514.2,4512.9,0.55]
[1755204351840,3.653,4514.1,4513.1,0.55]
[1755204352039,3.653,4514.1,4513.2,1.9002]
[1755204352240,0.6,4514.3,4513.4,0.55]
[1755204352464,0.6,4514.3,4513.6,0.55]
[1755204352662,0.6,4514.3,4513.8,0.55]
[1755204352868,0.6,4514.3,4514.0,0.55]
[1755204353025,0.6,4514.3,4514.2,0.55]
[1755204353225,0.7104,4514.3,4514.2,2.4502]
[1755204353456,0.7104,4514.3,4514.2,0.55]
[1755204353680,0.7104,4514.3,4513.7,0.55]
[1755204353885,0.6,4514.3,4513.8,0.22388]
[1755204354029,0.6,4514.3,4513.8,0.68268]
[1755204354030,0.1104,4513.9,4513.8,0.68268]
[1755204354977,3.649,4513.9,4513.6,1.23]
[1755204355127,2.9339,4513.8,4513.6,1.23]
[1755204355337,32.9339,4513.8,4513.6,1.23]
[1755204355575,2.9339,4513.8,4513.6,1.23]
[1755204355984,33.654,4513.7,4513.6,1.23]
[1755204356197,39.5879,4513.7,4513.6,1.23]
[1755204356573,35.9339,4513.7,4513.6,1.23]
[1755204357205,36.658,4513.7,4513.6,1.23]
[1755204357389,6.658,4513.7,4513.6,1.23]
[1755204358081,3.0,4513.7,4513.6,1.23]
[1755204358287,3.656,4513.7,4513.6,1.23]
[1755204358531,0.6,4514.3,4513.6,1.353]
[1755204358730,3.0,4514.1,4513.6,1.353]
[1755204358878,0.6,4514.3,4513.6,1.353]
[1755204359080,33.654,4514.2,4513.6,1.353]
[1755204359376,3.654,4514.2,4513.6,1.23]
[1755204360244,0.6,4514.3,4513.6,1.23]
[1755204360370,0.6,4514.3,4513.7,0.4588]
[1755204360593,20.0,4515.4,4513.7,1.9002]
[1755204360827,20.0,4515.4,4513.8,2.5302]
[1755204360985,30.0,4515.3,4513.9,0.37602]
[1755204361332,3.82661486,4515.4,4513.9,0.37602]
[1755204361690,33.0,4515.3,4513.9,0.37602]
[1755204362033,33.658,4515.2,4513.9,0.37602]
[1755204362213,30.0,4515.1,4513.9,0.37602]
[1755204362399,30.0,4515.1,4513.8,1.23]
[1755204362400,9.1411,4515.0,4513.8,1.23]
[1755204362607,3.0,4514.8,4513.8,1.23]
[1755204362813,30.0,4514.7,4513.8,1.23]
[1755204363009,3.662,4514.6,4513.8,1.23]
[1755204363317,3.663,4515.6,4513.9,1.32235379]
[1755204363516,3.665,4515.8,4514.0,1.55543538]
[1755204363730,20.0,4516.2,4514.1,0.55]
[1755204363891,3.86527687,4516.1,4514.1,1.87235281]
[1755204364092,0.16834775,4516.2,4514.3,0.55]
[1755204364291,3.665,4516.4,4514.5,0.55]
[1755204364492,3.665,4516.4,4514.7,0.55]
[1755204364687,0.002,4516.9,4514.7,0.55]
[1755204364916,0.002,4516.9,4514.9,0.55]
[1755204365119,0.1104,4515.7,4515.1,0.1104]
[1755204365334,0.002,4516.9,4515.4,2.21464322]
[1755204365547,0.002,4516.9,4515.7,0.55]
[1755204365548,0.1104,4516.2,4515.7,0.55]
[1755204365727,0.002,4516.9,4516.1,0.1104]
[1755204365926,0.1104,4516.7,4516.2,0.55]
[1755204366225,0.002,4516.9,4516.2,0.55]
[1755204366226,0.002,4516.9,4516.8,2.76395678]
[1755204366428,0.200613,4520.0,4517.7,0.55]
[1755204366601,20.0,4520.6,4517.9,3.55]
[1755204366602,0.20111455,4520.5,4517.9,3.55]
[1755204366804,0.20111455,4520.5,4518.2,0.55]
[1755204367011,0.20111455,4520.5,4518.1,3.0]
[1755204367012,0.20111455,4520.7,4518.3,1.2986]
[1755204367341,0.20111455,4520.9,4518.4,1.8486]
[1755204367520,0.20111455,4521.1,4518.6,0.55]
[1755204367734,0.20111455,4521.1,4518.8,0.55]
[1755204367735,0.36893209,4521.1,4518.8,0.55]
[1755204368055,0.16781754,4521.1,4519.0,0.55]
[1755204368336,0.45061455,4521.4,4519.3,2.21272067]
[1755204368527,0.2495,4521.4,4519.5,0.55]
[1755204368939,32.9339,4521.3,4519.0,0.55]
[1755204369234,3.0,4521.1,4519.1,0.1249273]
[1755204369407,3.0,4520.9,4518.5,0.4572]
[1755204369736,3.0,4520.9,4518.0,3.37503958]
[1755204369737,30.47977343,4520.8,4518.0,1.98363958]
[1755204369958,3.46437918,4520.9,4517.9,3.668]
[1755204369959,3.0,4520.6,4518.4,0.4572]
[1755204370103,3.0,4520.4,4517.9,3.668]
[1755204370302,6.80201455,4520.3,4518.0,0.4572]
[1755204370597,0.20111455,4520.2,4518.0,0.4572]
[1755204370750,3.86811455,4520.2,4518.1,0.8414]
[1755204370938,0.20111455,4520.1,4518.2,0.49887342]
[1755204371114,0.20111455,4520.1,4518.3,0.55]
[1755204371314,0.20111455,4520.1,4518.4,0.4572]
[1755204371624,0.20111455,4520.1,4518.3,0.55]
[1755204372133,0.20111455,4520.1,4518.5,0.55]
[1755204372338,20.41588235,4521.4,4518.3,0.57213221]
[1755204372339,0.20111455,4521.0,4519.1,2.21278188]
[1755204372538,0.20111455,4521.0,4518.9,0.55]
[1755204372539,0.20111455,4521.3,4520.4,1.23]
[1755204372738,20.2495,4521.4,4520.5,1.0072]
[1755204372939,0.2495,4521.4,4520.7,0.55]
[1755204373126,0.2495,4521.4,4520.9,0.55]
[1755204373315,0.2495,4521.4,4520.4,1.6872]
[1755204373507,0.2495,4521.4,4520.5,0.55]
[1755204373713,0.2495,4521.4,4520.4,1.6872]
[1755204373921,0.2495,4521.4,4520.4,1.23]
[1755204374226,0.2495,4521.4,4521.3,1.22733962]
[1755204374892,30.6993,4521.4,4521.3,1.22733962]
[1755204375031,33.38499177,4521.4,4521.3,1.22733962]
[1755204375451,37.04599177,4521.4,4521.3,1.22733962]
[1755204375668,33.38499177,4521.4,4521.3,1.22733962]
[1755204375862,37.04599177,4521.4,4521.3,1.22733962]
[1755204376136,37.15639177,4521.4,4521.3,1.22733962]
[1755204376670,6.70659177,4521.4,4521.3,1.22733962]
[1755204377027,7.15639177,4521.4,4521.3,1.22733962]
[1755204377828,37.15639177,4521.4,4521.3,1.22733962]
[1755204378784,33.49539177,4521.4,4521.3,2.45733962]
[1755204378948,4.10861735,4521.4,4521.3,2.45733962]
[1755204379143,4.21901735,4521.4,4521.3,2.45733962]
[1755204379557,7.15291735,4521.4,4521.3,2.45733962]
[1755204379971,4.21501735,4521.4,4521.3,2.45733962]
[1755204380139,6.69911735,4521.4,4521.3,3.68733962]
[1755204380475,7.14891735,4521.4,4521.3,3.68733962]
[1755204380682,37.14891735,4521.4,4521.3,3.68733962]
[1755204381560,33.49491735,4521.4,4521.3,4.91733962]
[1755204381746,37.14591735,4521.4,4521.3,4.91733962]
[1755204382136,33.49491735,4521.4,4521.3,4.91733962]
[1755204382336,37.14591735,4521.4,4521.3,4.91733962]
[1755204382751,37.14591735,4521.4,4521.3,6.14833962]
[1755204383275,37.14791735,4521.4,4521.3,6.14833962]
[1755204383969,33.49691735,4521.4,4521.3,6.14833962]
[1755204384271,37.14691735,4521.4,4521.3,7.37833962]
[1755204384472,40.14691735,4521.4,4521.3,7.37833962]
[1755204385586,40.14691735,4521.4,4521.3,8.60833962]
[1755204386168,36.49691735,4521.4,4521.3,8.60833962]
[1755204386369,34.20801735,4521.4,4521.3,8.60833962]
[1755204386542,4.20401735,4521.4,4521.3,8.60833962]
[1755204386738,0.56301735,4521.4,4521.3,9.83833962]
[1755204386960,4.0029,4521.4,4521.3,9.83833962]
[1755204387162,4.20401735,4521.4,4521.3,9.83833962]
[1755204387335,0.56301735,4521.4,4521.3,9.83833962]
[1755204387539,0.3619,4521.4,4521.3,9.83833962]
[1755204388179,0.3619,4521.4,4521.3,11.06833962]
[1755204388537,3.2253,4521.4,4521.3,11.06833962]
[1755204388761,36.42641735,4521.4,4521.3,11.06833962]
[1755204389168,36.89385655,4521.4,4521.3,11.06833962]
[1755204389368,36.89385655,4521.4,4521.3,12.29833962]
[1755204389577,33.89385655,4521.4,4521.3,12.29833962]
[1755204389889,40.41945655,4521.4,4521.3,12.29833962]
[1755204390090,41.09121743,4521.4,4521.3,9.79833962]
[1755204390460,41.09121743,4521.4,4521.3,9.53268999]
[1755204390675,7.45521743,4521.4,4521.3,10.76268999]
[1755204390988,40.54721743,4521.4,4521.3,10.76268999]
[1755204391362,41.71664296,4521.4,4521.3,10.76268999]
[1755204391691,42.26664296,4521.4,4521.3,10.25907006]
[1755204392051,38.62464296,4521.4,4521.3,10.25907006]
[1755204392256,42.26364296,4521.4,4521.3,11.48907006]
[1755204392453,42.42021743,4521.4,4521.3,8.50053428]
[1755204392682,42.42021743,4521.4,4521.3,6.1095287]
[1755204393188,62.42021743,4521.4,4521.3,6.1095287]
[1755204393361,63.98541471,4521.4,4521.3,5.12434263]
[1755204393570,62.4210253,4521.4,4521.3,6.35434263]
[1755204394962,62.4210253,4521.4,4521.3,7.53434263]
[1755204395291,60.54326335,4521.4,4521.3,7.53434263]
[1755204395672,62.41926335,4521.4,4521.3,7.53434263]
[1755204395866,57.45626335,4521.4,4521.3,7.53434263]
[1755204396198,61.09826335,4521.4,4521.3,5.77571775]
[1755204396357,61.10249161,4521.4,4521.3,5.77571775]
[1755204396552,62.42849161,4521.4,4521.3,5.77571775]
[1755204396791,62.42849161,4521.4,4521.3,5.60967351]
[1755204397353,61.87849161,4521.4,4521.3,5.60967351]
[1755204397587,62.42849161,4521.4,4521.3,5.60967351]
[1755204397788,62.42849161,4521.4,4521.3,6.83967351]
[1755204398581,62.42849161,4521.4,4521.3,4.44860212]
[1755204399411,56.44404771,4521.4,4521.3,5.67860212]
[1755204399693,61.20789161,4521.4,4521.3,5.67860212]
[1755204400682,61.20789161,4521.4,4521.3,6.90860212]
[1755204400887,57.57089161,4521.4,4521.3,6.90860212]
[1755204401073,61.20589161,4521.4,4521.3,6.90860212]
[1755204401488,57.79149161,4521.4,4521.3,6.90860212]
[1755204401801,28.34149161,4521.4,4521.3,6.90860212]
[1755204401976,61.20489161,4521.4,4521.3,8.13860212]
[1755204402365,61.20489161,4521.4,4521.3,6.3454202]
[1755204402673,54.15749161,4521.4,4521.3,6.3454202]
[1755204402877,17.70509161,4521.4,4521.3,9.36856222]
[1755204403200,0.20509526,4521.4,4521.3,9.81726222]
[1755204403496,0.20509526,4521.4,4521.3,8.20996222]
[1755204403875,0.20509526,4521.4,4521.3,7.5754202]
[1755204404667,0.20509526,4521.4,4521.3,8.8054202]
[1755204405089,0.20505351,4521.4,4521.3,8.8054202]
[1755204405633,0.002,4521.5,4521.4,0.55]
[1755204405806,0.002,4521.5,4521.4,4.184]
[1755204405987,0.002,4521.5,4521.4,6.71294202]
[1755204406363,0.002,4521.5,4521.4,1.23]
[1755204406562,0.002,4521.5,4521.4,4.863]
[1755204407300,0.002,4521.5,4521.4,1.23]
[1755204407604,0.002,4521.5,4521.4,2.46]
[1755204409099,0.002,4521.5,4521.4,3.69]
[1755204409462,0.002,4521.5,4521.4,3.6292]
[1755204410504,0.002,4521.5,4521.4,4.8592]
[1755204410907,0.002,4521.5,4521.4,8.4862]
[1755204411103,0.002,4521.5,4521.4,4.8592]
[1755204411904,0.002,4521.5,4521.4,6.0892]
[1755204413422,0.1124,4521.5,4521.4,7.3192]
[1755204413632,6.7334,4521.5,4521.4,7.3192]
[1755204414102,7.323823,4521.5,4521.4,7.3192]
[1755204414610,9.6948357,4521.5,4521.4,7.3192]
[1755204414812,9.6948357,4521.5,4521.4,8.5492]
[1755204415017,10.95334299,4521.5,4521.4,8.5492]
[1755204415219,10.16611232,4521.5,4521.4,8.5492]
[1755204415642,10.95334299,4521.5,4521.4,8.5492]
[1755204416116,40.16611232,4521.5,4521.4,8.5492]
[1755204416279,41.34667155,4521.5,4521.4,9.7792]
[1755204416483,40.16611232,4521.5,4521.4,9.7792]
[1755204417034,10.60571232,4521.5,4521.4,6.31571367]
[1755204417318,10.60571232,4521.5,4521.4,3.92474124]
[1755204417319,61.27056832,4521.5,4521.4,3.92474124]
[1755204417516,61.47506315,4521.5,4521.4,5.15474124]
[1755204417824,62.80106315,4521.5,4521.4,5.15474124]
[1755204417980,33.07972203,4521.5,4521.4,5.15474124]
[1755204418322,64.65017957,4521.5,4521.4,5.15474124]
[1755204418626,64.65000571,4521.5,4521.4,5.15474124]
[1755204418980,64.65000571,4521.5,4521.4,6.38474124]
[1755204419438,63.07954817,4521.5,4521.4,6.38474124]
[1755204419635,63.07945278,4521.5,4521.4,6.38474124]
[1755204419937,64.64991032,4521.5,4521.4,6.38474124]
[1755204420501,64.64991032,4521.5,4521.4,7.61474124]
[1755204420902,63.35656631,4521.5,4521.4,6.78235324]
[1755204421698,63.35656631,4521.5,4521.4,0.69250447]
[1755204421899,4.876,4521.4,4521.3,8.8054202]
[1755204422136,42.02120185,4521.4,4521.3,1.04955891]
[1755204422510,39.27498608,4521.4,4521.3,0.93886696]
[1755204422841,43.94006708,4521.4,4521.3,0.93886696]
[1755204423011,63.94006708,4521.4,4521.3,2.05817501]
[1755204423225,63.94006708,4521.4,4520.7,0.89717153]
[1755204423541,4.876,4521.0,4520.4,0.067996]
[1755204423722,1.876,4520.5,4517.2,0.4456]
[1755204423899,1.876,4520.3,4517.2,0.4456]
[1755204424105,6.83393714,4520.1,4517.2,0.4456]
[1755204424304,42.69896031,4520.1,4517.2,0.4456]
[1755204424612,42.1169379,4520.1,4520.0,2.46]
[1755204424814,43.68202751,4520.1,4520.0,2.46]
[1755204425016,42.69896031,4520.1,4520.0,2.46]
[1755204425224,62.69896031,4520.1,4520.0,2.34926122]
[1755204425403,64.26282685,4520.1,4520.0,2.34926122]
[1755204425737,66.1149379,4520.1,4520.0,2.34926122]
[1755204426042,66.1149379,4520.1,4520.0,3.57926122]
[1755204426043,55.57350848,4520.1,4520.0,3.57926122]
[1755204426196,54.4002379,4520.1,4520.0,3.57926122]
[1755204426396,52.63603839,4520.1,4520.0,3.57926122]
[1755204426634,56.23703839,4520.1,4520.0,3.57926122]
[1755204426844,59.23703839,4520.1,4520.0,3.57926122]
[1755204427056,63.86621055,4520.1,4520.0,3.57926122]
[1755204427375,63.86621055,4520.1,4520.0,4.80926122]